bitfinex-derivatives/quotes_ETHF0:USTF0_20240905
["timestamp","ask_amount","ask_price","bid_price","bid_amount"]
[1725529391901,0.06710723,2399.2,2399.1,0.41882981]
[1725529392099,3.73521922,2399.4,2399.2,0.41682]
[1725529392399,0.06710775,2399.3,2399.2,0.41682]
[1725529393107,0.06710775,2399.3,2399.2,0.91012]
[1725529393696,0.06710775,2399.3,2399.1,0.00198981]
[1725529393902,0.41682,2399.2,2399.1,0.00198981]
[1725529394097,0.48392775,2399.2,2399.1,0.00198981]
[1725529394302,8.58398775,2399.2,2399.1,0.00198981]
[1725529394508,12.94248647,2399.2,2399.1,0.00198981]
[1725529394807,0.41692,2398.7,2398.5,0.5239]
[1725529395006,0.41692,2398.7,2397.7,1.45770618]
[1725529395007,0.48401891,2398.6,2398.3,0.41697]
[1725529395198,1.42493,2398.6,2398.3,0.41697]
[1725529395812,0.06708579,2398.5,2398.3,0.41697]
[1725529396113,1.42493,2398.6,2398.2,0.006253]
[1725529396114,0.41698,2398.3,2398.2,0.006253]
[1725529396301,3.62478,2398.3,2398.2,0.006253]
[1725529396502,3.2078,2398.3,2398.2,0.006253]
[1725529398211,0.4931,2398.6,2398.5,0.41694]
[1725529398417,0.4931,2398.6,2398.2,7.065853]
[1725529398418,0.4931,2398.6,2398.4,0.41695]
[1725529398902,0.5299,2398.7,2398.5,0.41694]
[1725529399307,0.536,2398.8,2398.6,0.41693]
[1725529399916,0.536,2398.8,2398.6,0.41692]
[1725529401311,0.536,2398.8,2398.6,0.41691]
[1725529401516,0.536,2398.8,2398.7,0.41691]
[1725529401713,0.5299,2399.0,2398.4,2.89]
[1725529402016,0.5299,2399.0,2398.8,0.41688]
[1725529402017,1.0202,2399.0,2398.8,0.41688]
[1725529403215,0.41684,2399.1,2398.9,0.41687]
[1725529403410,0.41684,2399.1,2398.8,0.41688]
[1725529403613,0.41684,2399.1,2398.8,0.41689]
[1725529404211,0.41685,2399.1,2398.8,0.91478]
[1725529404418,0.41685,2399.1,2398.8,0.4979]
[1725529404620,0.41685,2399.1,2398.8,0.91478]
[1725529404917,7.22723,2399.2,2398.9,0.41686]
[1725529405106,3.6994,2399.2,2398.8,0.4979]
[1725529405416,3.2078,2399.2,2399.0,0.41684]
[1725529405613,3.2078,2399.2,2399.1,0.41684]
[1725529405815,3.2078,2399.2,2399.0,0.41685]
[1725529406313,3.2078,2399.2,2399.1,0.41684]
[1725529406816,0.41684,2399.1,2398.9,0.41686]
[1725529407012,0.41687,2399.0,2398.8,3.80479]
[1725529407220,0.41687,2399.0,2398.8,0.91479]
[1725529407421,3.2078,2399.2,2398.8,0.4979]
[1725529407622,3.2078,2399.2,2399.1,0.41684]
[1725529408215,3.2078,2399.2,2398.9,0.5478]
[1725529408416,0.41687,2398.9,2398.8,0.4979]
[1725529408611,0.41688,2398.9,2398.7,0.92261]
[1725529409015,0.41687,2399.0,2398.8,0.41689]
[1725529409208,0.41687,2398.9,2398.8,0.41689]
[1725529409411,0.41686,2399.0,2398.8,0.41689]
[1725529409616,0.532,2399.1,2398.7,0.5057]
[1725529409811,0.41688,2398.9,2398.7,0.5057]
[1725529410016,0.41688,2398.9,2398.7,0.9226]
[1725529410723,0.532,2399.1,2398.7,0.5057]
[1725529411020,0.532,2399.1,2398.8,3.30688]
[1725529411021,0.41686,2399.0,2398.8,3.30688]
[1725529411219,0.41686,2399.0,2398.8,0.41688]
[1725529411621,0.41689,2398.8,2398.7,0.5057]
[1725529412112,0.96949,2398.8,2398.7,0.5057]
[1725529412617,0.96949,2398.8,2398.6,0.41692]
[1725529412921,0.9695,2398.8,2398.6,0.41693]
[1725529413421,0.41691,2398.7,2398.5,0.41694]
[1725529413620,0.41691,2398.7,2398.6,0.41693]
[1725529414027,0.41693,2398.6,2398.4,4.37375]
[1725529414929,0.41692,2398.7,2398.5,0.41693]
[1725529415219,0.41693,2398.6,2398.4,4.37375]
[1725529415415,0.41694,2398.5,2398.4,1.0668]
[1725529416727,3.2078,2398.6,2398.4,1.0668]
[1725529416926,0.41694,2398.5,2398.4,1.0668]
[1725529417822,3.62474,2398.6,2398.4,1.48376]
[1725529418023,3.2078,2398.6,2398.5,0.41694]
[1725529419131,3.2078,2398.6,2398.4,1.0668]
[1725529419330,3.2078,2398.6,2398.5,0.41694]
[1725529420232,1.4732,2398.8,2398.6,0.41692]
[1725529421336,1.4732,2398.8,2398.7,0.41691]
[1725529421536,1.4732,2398.8,2398.6,0.41691]
[1725529423633,1.4732,2398.8,2398.7,0.41691]
[1725529424028,1.4732,2398.8,2398.6,0.41691]
[1725529424834,1.4732,2398.8,2398.7,0.41691]
[1725529425134,1.0563,2398.8,2398.7,0.41691]
[1725529425332,0.5526,2398.8,2398.7,0.41691]
[1725529426729,4.34933,2399.1,2398.8,0.41689]
[1725529426926,4.34933,2399.1,2398.4,4.9992]
[1725529426927,0.5206,2399.0,2398.5,1.04237]
[1725529427125,5.23295765,2399.0,2398.9,0.41687]
[1725529427533,1.35464,2399.1,2398.6,1.04231]
[1725529427727,0.9378,2399.1,2398.5,1.04237]
[1725529427932,0.41686,2399.0,2398.9,0.41687]
[1725529428840,0.41686,2399.0,2398.5,1.04237]
[1725529429041,0.41686,2399.0,2398.9,0.41687]
[1725529429341,0.9378,2399.1,2398.8,0.41688]
[1725529429645,0.4169,2398.8,2398.7,0.4169]
[1725529429840,3.2078,2398.9,2398.7,0.4169]
[1725529430039,3.2078,2398.9,2398.4,1.0668]
[1725529430040,4.25002,2398.9,2398.4,1.0668]
[1725529430230,0.41692,2398.7,2398.5,0.41694]
[1725529430941,0.41692,2398.7,2398.6,0.41693]
[1725529431443,0.546,2398.8,2398.4,1.0668]
[1725529431744,0.41694,2398.5,2398.4,1.0668]
[1725529432836,0.41694,2398.5,2398.4,0.5332]
[1725529433045,0.41694,2398.5,2398.2,0.423243]
[1725529433046,0.41696,2398.4,2398.2,0.423243]
[1725529433436,0.93865,2398.5,2398.3,0.41698]
[1725529434035,0.5217,2398.5,2398.2,0.006253]
[1725529434338,0.41691,2398.7,2398.4,0.41695]
[1725529434542,0.95801,2398.7,2398.5,0.41694]
[1725529435135,0.41693,2398.6,2398.4,0.41695]
[1725529436735,0.41693,2398.6,2398.5,0.5128]
[1725529438345,0.5411,2398.7,2398.5,0.92974]
[1725529438645,3.2078,2399.2,2398.6,6.0978]
[1725529438837,0.41688,2398.9,2398.6,0.93942]
[1725529439038,5.08719649,2398.9,2398.6,0.93942]
[1725529439243,0.41688,2398.9,2398.6,0.93942]
[1725529439440,3.62468,2398.9,2398.6,0.93942]
[1725529439746,0.41689,2398.8,2398.6,0.5225]
[1725529439947,3.62468,2398.9,2398.6,0.5225]
[1725529440248,3.2078,2398.9,2398.6,0.5225]
[1725529440548,3.2078,2398.9,2398.6,0.93941]
[1725529440735,3.7119,2398.9,2398.6,0.93941]
[1725529441140,4.12878,2398.9,2398.6,0.93941]
[1725529441943,4.12878,2398.9,2398.6,0.5225]
[1725529441944,3.7119,2398.9,2398.6,0.5225]
[1725529442145,0.5177,2398.8,2398.6,0.5225]
[1725529442549,0.5177,2398.8,2398.6,0.41692]
[1725529443446,3.7119,2398.9,2398.6,0.41691]
[1725529443650,3.7119,2398.9,2398.7,0.41691]
[1725529445449,0.5096,2399.1,2398.5,0.5128]
[1725529445649,0.5096,2399.1,2398.6,0.56145693]
[1725529445852,0.5096,2399.1,2398.9,0.41687]
[1725529446553,0.5096,2399.1,2399.0,0.91826]
[1725529446747,0.5096,2399.1,2399.0,0.5014]
[1725529447055,0.5096,2399.1,2399.0,0.91826]
[1725529448345,3.7496,2399.2,2399.1,0.41684]
[1725529448551,3.2078,2399.2,2399.1,0.41684]
[1725529449550,3.2078,2399.2,2399.0,0.91825]
[1725529449749,3.2078,2399.2,2399.1,0.41684]
[1725529450547,3.62463,2399.2,2399.0,0.91825]
[1725529451255,3.2078,2399.2,2399.1,0.41684]
[1725529452456,0.00421922,2399.4,2399.0,1.54353]
[1725529452756,0.00421922,2399.4,2399.3,0.4168]
[1725529457456,0.00421922,2399.4,2399.3,1.5127]
[1725529458857,0.00421922,2399.4,2399.3,0.4168]
[1725529459060,0.00421922,2399.4,2399.0,0.5014]
[1725529459061,0.42101922,2399.4,2399.2,0.41681]
[1725529459361,3.93203,2399.3,2398.7,4.197]
[1725529459562,3.93203,2399.3,2398.7,5.2567]
[1725529459563,0.41688,2398.9,2398.7,5.2567]
[1725529459858,3.2078,2398.9,2398.8,0.41689]
[1725529460050,0.41688,2398.9,2398.7,1.4766]
[1725529460249,0.41687,2399.0,2398.8,0.41689]
[1725529460658,2.89,2399.1,2398.7,1.0597]
[1725529460955,0.41686,2399.0,2398.8,0.41688]
[1725529461161,3.30685,2399.1,2398.9,0.41687]
[1725529462451,0.41685,2399.1,2398.9,0.41687]
[1725529464961,3.7086,2399.2,2398.7,1.0597]
[1725529465165,3.7086,2399.2,2399.1,0.41684]
[1725529465467,0.42100922,2399.4,2399.2,0.41681]
[1725529465659,1.49350922,2399.4,2399.2,0.41681]
[1725529466060,4.38350922,2399.4,2399.2,0.41681]
[1725529466563,0.4168,2399.3,2399.2,0.41681]
[1725529466765,0.41682,2399.2,2399.1,0.41683]
[1725529466958,3.62462,2399.2,2399.1,0.41683]
[1725529467155,3.2078,2399.2,2399.1,0.41683]
[1725529467762,0.41684,2399.1,2398.7,1.0597]
[1725529468158,0.41684,2399.1,2398.9,0.41686]
[1725529468360,6.0978,2399.2,2399.0,0.41684]
[1725529468361,6.51463,2399.2,2399.0,0.41684]
[1725529468661,6.51463,2399.2,2399.0,0.41685]
[1725529469056,0.41684,2399.1,2398.9,0.41686]
[1725529469559,0.41686,2399.0,2398.9,0.41686]
[1725529469761,0.5374,2399.1,2398.9,0.41686]
[1725529469963,0.5305,2399.0,2398.9,0.41686]
[1725529470563,0.41685,2399.1,2398.9,0.41686]
[1725529470770,0.41685,2399.1,2399.0,0.41686]
[1725529471074,7.06343,2399.2,2399.0,0.41686]
[1725529471767,0.41684,2399.1,2399.0,0.41686]
[1725529471968,6.6466,2399.2,2399.0,0.41686]
[1725529471969,7.06344,2399.2,2399.0,0.41686]
[1725529472169,6.6466,2399.2,2399.0,0.41686]
[1725529472566,0.41684,2399.1,2399.0,0.41686]
[1725529473370,7.06343,2399.2,2399.0,0.41686]
[1725529473670,7.06343,2399.2,2398.7,1.0597]
[1725529473968,7.06343,2399.2,2399.0,0.41684]
[1725529474269,7.06343,2399.2,2399.1,0.5361]
[1725529475765,0.41684,2399.1,2398.9,0.41686]
[1725529475964,0.41684,2399.1,2399.0,0.41686]
[1725529476172,0.41684,2399.1,2398.8,0.5361]
[1725529476574,0.41684,2399.1,2399.0,0.41686]
[1725529477373,7.06343,2399.2,2399.0,0.41686]
[1725529477675,0.41684,2399.1,2399.0,0.41686]
[1725529477969,0.41684,2399.1,2398.8,0.5361]
[1725529477970,5.37343,2399.2,2399.1,0.41684]
[1725529478170,5.37343,2399.2,2398.8,0.5361]
[1725529478171,5.37343,2399.2,2399.0,0.41684]
[1725529478366,0.41684,2399.1,2399.0,0.41684]
[1725529479573,5.37343,2399.2,2399.0,0.41684]
[1725529479769,0.41684,2399.1,2399.0,0.41684]
[1725529480869,0.41686,2399.0,2398.9,0.41687]
[1725529481167,0.41686,2399.0,2398.2,1.10053301]
[1725529481168,1.04235,2398.6,2398.2,1.10053301]
[1725529481370,0.41697,2398.4,2398.3,1.63760683]
[1725529482569,0.41697,2398.4,2398.3,2.05458683]
[1725529482977,1.61695,2398.5,2398.3,2.05458683]
[1725529483175,1.61695,2398.5,2398.4,0.41696]
[1725529483372,1.61695,2398.5,2398.3,1.49306]
[1725529484173,3.2078,2398.7,2398.3,1.0761]
[1725529484376,0.41688,2398.9,2398.8,0.41689]
[1725529484766,0.41688,2398.9,2398.4,1.04241]
[1725529484970,0.41688,2398.9,2398.8,0.41689]
[1725529485575,3.29687,2399.0,2398.8,0.41688]
[1725529485777,3.29687,2399.0,2398.9,0.5408]
[1725529486078,3.29687,2399.0,2398.9,0.95767]
[1725529486275,3.29687,2399.0,2398.9,0.5408]
[1725529486672,3.29687,2399.0,2398.9,1.0877]
[1725529486872,2.88,2399.0,2398.9,1.50457]
[1725529487272,3.2078,2399.1,2399.0,0.41686]
[1725529491179,3.62464,2399.1,2399.0,0.41686]
[1725529491490,0.41686,2399.0,2398.9,1.0877]
[1725529491784,3.29686,2399.0,2398.9,1.0877]
[1725529494286,0.41687,2398.9,2398.4,6.33367001]
[1725529494491,2.02157,2398.9,2398.7,0.41689]
[1725529494785,2.02159,2398.9,2398.7,0.4169]
[1725529495182,0.41689,2398.8,2398.7,0.4169]
[1725529495886,0.41693,2398.6,2398.5,1.50264]
[1725529496086,0.41692,2398.7,2398.5,0.94984]
[1725529496288,6.0878,2398.8,2398.5,0.94984]
[1725529496481,0.41693,2398.6,2398.5,0.94984]
[1725529496887,3.29693,2398.6,2398.5,0.5329]
[1725529497082,3.29693,2398.6,2398.4,0.41696]
[1725529497083,0.41694,2398.5,2398.4,0.41696]
[1725529497395,8.09193,2398.6,2398.2,0.423233]
[1725529497695,0.41698,2398.3,2398.2,0.006253]
[1725529498292,0.41698,2398.3,2398.2,0.423253]
[1725529498795,0.41698,2398.3,2398.2,0.006253]
[1725529498983,0.41698,2398.3,2398.2,0.423253]
[1725529499386,0.41698,2398.3,2398.2,0.006253]
[1725529500195,4.58658,2398.3,2398.2,0.006253]
[1725529500898,0.41698,2398.3,2398.2,0.006253]
[1725529507198,4.479,2398.4,2398.2,0.006253]
[1725529507394,0.41696,2398.4,2398.2,0.423243]
[1725529507594,3.29696,2398.5,2398.3,0.41698]
[1725529508099,1.2,2398.4,2398.3,0.41698]
[1725529508298,1.2,2398.4,2398.2,0.006253]
[1725529508493,1.2,2398.4,2398.3,0.41698]
[1725529508698,1.2,2398.5,2398.4,0.41696]
[1725529510101,2.88,2398.5,2398.4,0.41696]
[1725529513892,11.76563757,2398.5,2398.4,0.41696]
[1725529514204,7.59603757,2398.5,2398.4,0.41696]
[1725529515000,4.71603757,2398.5,2398.4,0.41696]
[1725529515305,2.88,2398.6,2398.5,0.41694]
[1725529515500,3.6247,2398.8,2398.7,0.41691]
[1725529515501,6.0878,2398.8,2398.7,0.41691]
[1725529516302,3.29687,2399.0,2398.9,0.41687]
[1725529516699,0.41688,2398.9,2398.8,0.41689]
[1725529516898,3.29686,2399.0,2398.9,0.41687]
[1725529517115,1.04219,2398.9,2398.3,0.5553]
[1725529517301,3.29691,2398.7,2398.3,0.5553]
[1725529517605,0.41693,2398.6,2398.5,0.41694]
[1725529518300,3.29692,2398.7,2398.6,0.41693]
[1725529518906,2.88,2398.7,2398.6,0.41693]
[1725529519296,3.29691,2398.7,2398.6,0.41693]
[1725529519508,2.88,2398.7,2398.6,0.41693]
[1725529519912,3.29691,2398.7,2398.6,0.41693]
[1725529520205,2.88,2398.7,2398.6,0.41693]
[1725529520607,4.2289,2399.1,2398.8,0.41689]
[1725529520608,2.88,2398.9,2398.8,0.41689]
[1725529524405,3.62465,2399.1,2399.0,0.41686]
[1725529524406,3.2078,2399.1,2399.0,0.41686]
[1725529524604,6.0878,2399.1,2399.0,0.41686]
[1725529527498,6.50464,2399.1,2399.0,0.41686]
[1725529527810,6.0878,2399.1,2399.0,0.41686]
[1725529528705,3.2078,2399.1,2399.0,4.58486]
[1725529530003,2.88,2399.3,2399.2,0.41682]
[1725529530607,2.88,2399.3,2399.2,0.92542]
[1725529530910,0.00421922,2399.4,2399.3,0.4168]
[1725529531297,0.00421922,2399.4,2399.3,0.9616]
[1725529531898,1.20421922,2399.4,2399.3,0.9616]
[1725529532405,1.20421922,2399.4,2399.2,0.5086]
[1725529532707,0.4168,2399.3,2399.2,0.92541]
[1725529533103,0.9631,2399.3,2399.2,0.92541]
[1725529533509,0.9631,2399.3,2399.1,0.5059]
[1725529533510,0.9631,2399.3,2399.1,0.41683]
[1725529533809,1.61682,2399.2,2399.1,0.41683]
[1725529534009,0.41684,2399.1,2399.0,0.94784]
[1725529534209,1.2,2399.2,2398.9,0.5295]
[1725529534210,0.41686,2399.0,2398.9,0.5295]
[1725529534408,0.41691,2398.7,2398.6,0.5562]
[1725529534808,0.41691,2398.7,2398.6,0.97313]
[1725529535007,0.41691,2398.7,2398.6,0.5562]
[1725529535314,0.41691,2398.7,2398.5,0.41693]
[1725529535515,1.2,2398.6,2398.5,0.41693]
[1725529535712,1.56719,2398.9,2398.4,0.531]
[1725529535713,0.41691,2398.8,2398.6,0.41692]
[1725529535918,1.2,2398.7,2398.6,0.41692]
[1725529536510,1.61691,2398.7,2398.6,0.41692]
[1725529537403,1.2,2398.7,2398.6,0.41692]
[1725529537910,2.88,2398.7,2398.6,0.41692]
[1725529539817,0.525,2398.9,2398.8,0.41689]
[1725529539818,2.88,2398.9,2398.8,0.41689]
[1725529540007,0.515,2399.0,2398.9,0.41687]
[1725529541813,0.41687,2398.9,2398.8,0.41688]
[1725529542013,4.13967,2399.0,2398.8,0.41688]
[1725529542213,2.88,2398.9,2398.8,0.41688]
[1725529545821,1.50373,2399.2,2399.0,0.41684]
[1725529546016,2.88,2399.1,2399.0,0.41684]
[1725529546918,0.00421922,2399.4,2399.0,12.0878]
[1725529546919,5.26e-06,2399.4,2399.0,12.0878]
[1725529547118,3.2078,2400.3,2400.1,0.41666]
[1725529547423,3.2078,2400.3,2400.1,0.41665]
[1725529547616,3.2078,2400.3,2400.2,0.41665]
[1725529548015,0.0019898,2400.5,2400.3,0.41662]
[1725529548218,0.0019898,2400.5,2400.2,2.88]
[1725529548414,0.0019898,2400.5,2400.3,0.41663]
[1725529548625,0.0019898,2400.5,2400.2,2.88]
[1725529548925,0.0019898,2400.5,2400.3,0.41663]
[1725529549419,3.2078,2400.4,2400.1,0.41665]
[1725529549622,3.2078,2400.4,2400.2,0.41664]
[1725529549821,0.0019898,2400.5,2400.2,2.88]
[1725529550022,0.0019898,2400.5,2400.4,0.41661]
[1725529551318,2.7575898,2400.7,2400.4,0.41661]
[1725529551919,2.7575898,2400.7,2400.3,0.41662]
[1725529552123,2.7575898,2400.7,2400.4,0.41661]
[1725529553118,1.44756,2400.8,2400.4,0.4166]
[1725529553323,1.44756,2400.8,2400.3,0.41662]
[1725529553324,3.62437,2400.7,2400.3,0.41662]
[1725529553524,8.32171124,2400.7,2400.4,0.41661]
[1725529553725,7.90514124,2400.7,2400.4,0.41661]
[1725529555121,4.69734124,2400.7,2400.5,0.41658]
[1725529555327,4.69734124,2400.7,2400.6,0.41658]
[1725529555523,4.12701,2401.0,2400.7,0.41655]
[1725529555723,0.41655,2400.8,2400.5,3.29659]
[1725529555919,0.41655,2400.8,2400.5,0.41659]
[1725529557234,5.18292063,2400.9,2400.2,6.6138]
[1725529557442,0.41655,2400.8,2400.5,0.41658]
[1725529557737,5.18292063,2400.9,2400.4,2.88]
[1725529557934,5.18292063,2400.9,2400.7,0.41656]
[1725529558136,4.76638063,2400.9,2400.7,0.41656]
[1725529558340,4.76638063,2400.9,2400.8,0.41654]
[1725529558540,0.41653,2400.9,2400.7,0.41655]
[1725529558932,4.12702,2401.0,2400.7,0.41655]
[1725529559139,4.12702,2401.0,2400.4,2.88]
[1725529559140,0.41653,2400.9,2400.4,2.88]
[1725529559333,0.41653,2400.9,2400.7,0.41655]
[1725529559934,3.7105,2401.0,2400.4,2.88]
[1725529560355,0.41653,2400.9,2400.7,0.41655]
[1725529560664,0.41653,2400.9,2400.4,2.88]
[1725529560665,0.41659,2400.6,2400.2,3.7338]
[1725529560848,1.04132,2400.9,2400.2,3.7338]
[1725529560849,3.2078,2400.7,2400.2,3.7338]
[1725529561155,0.41667,2400.1,2400.0,0.006253]
[1725529561358,7.54614,2400.1,2400.0,0.006253]
[1725529561563,0.41675,2399.6,2399.5,1.0672]
[1725529561761,2.88,2399.9,2399.1,0.5463]
[1725529561952,0.41678,2399.5,2399.2,0.41681]
[1725529562255,0.41674,2399.7,2399.4,0.41678]
[1725529562453,0.41676,2399.6,2399.3,0.4168]
[1725529562853,0.41677,2399.5,2399.2,3.303063]
[1725529563054,2.630813,2399.8,2399.2,2.886253]
[1725529563249,4.84764647,2399.6,2399.3,0.4168]
[1725529563454,0.41676,2399.6,2399.2,3.303063]
[1725529564050,0.41678,2399.5,2399.2,2.886253]
[1725529564259,0.41678,2399.5,2399.2,0.006253]
[1725529564947,0.41678,2399.5,2399.2,0.423073]
[1725529565159,4.52054449,2399.7,2399.2,0.006253]
[1725529565458,0.41678,2399.5,2399.2,0.006253]
[1725529566152,0.41679,2399.4,2399.2,0.006253]
[1725529566461,0.41678,2399.5,2399.2,0.006253]
[1725529566655,0.41679,2399.4,2399.2,0.006253]
[1725529566855,0.4168,2399.3,2399.2,0.006253]
[1725529567156,0.41686,2399.0,2398.9,0.5488]
[1725529567350,0.41687,2398.9,2398.6,6.5961]
[1725529567658,0.41689,2398.9,2398.6,3.3883]
[1725529567959,0.41687,2399.0,2398.6,3.80522]
[1725529568252,0.41687,2398.9,2398.6,2.886253]
[1725529568753,0.41691,2398.7,2398.6,0.006253]
[1725529573854,1.04232,2398.6,2398.0,3.2078]
[1725529574053,7.13021,2398.4,2398.0,3.2078]
[1725529574356,0.41701,2398.1,2398.0,3.2078]
[1725529575155,0.41701,2398.2,2398.0,3.2078]
[1725529575350,0.20377692,2398.7,2398.0,3.2078]
[1725529575351,3.111,2398.8,2398.1,2.88]
[1725529575552,0.41694,2398.6,2398.3,3.2078]
[1725529575854,0.41694,2398.6,2398.4,0.5234]
[1725529576251,0.41692,2398.7,2398.4,0.94035]
[1725529576466,0.006253,2399.0,2398.4,0.5234]
[1725529576665,0.41692,2398.7,2398.4,0.94035]
[1725529576849,1.048423,2399.0,2398.4,0.5234]
[1725529576850,0.41694,2398.5,2398.4,0.5234]
[1725529579466,3.2078,2398.9,2398.4,9.4034]
[1725529579759,0.006253,2399.0,2398.9,0.41687]
[1725529581560,0.006253,2399.0,2398.8,41.3115]
[1725529581561,0.006253,2399.0,2398.8,0.5115]
[1725529581865,0.41687,2398.9,2398.7,0.4169]
[1725529582066,0.41687,2398.9,2398.6,0.41691]
[1725529582562,0.41687,2398.9,2398.7,0.4169]
[1725529582765,0.423123,2399.0,2398.7,0.4169]
[1725529582962,0.423123,2399.0,2398.8,0.41689]
[1725529582963,0.006253,2399.0,2398.8,0.41689]
[1725529584761,0.006253,2399.0,2398.9,0.41687]
[1725529592069,2.886253,2399.0,2398.6,0.94902]
[1725529592274,0.4169,2398.8,2398.6,0.94902]
[1725529592478,0.5083,2398.9,2398.6,0.94902]
[1725529592672,0.92518,2398.9,2398.7,0.41691]
[1725529592877,0.41689,2398.8,2398.6,0.94901]
[1725529593282,0.92518,2398.9,2398.7,0.41691]
[1725529593487,0.92518,2398.9,2398.6,0.94901]
[1725529593980,0.92518,2398.9,2398.7,0.41691]
[1725529594575,0.5083,2398.9,2398.8,0.41689]
[1725529595075,0.92518,2398.9,2398.7,0.4169]
[1725529595677,0.41689,2398.8,2398.6,0.94901]
[1725529595875,0.41689,2398.8,2398.6,0.41691]
[1725529598487,1.95298,2398.9,2398.7,0.4169]
[1725529598682,0.5083,2398.9,2398.8,0.41689]
[1725529599184,0.423123,2399.0,2398.8,0.41689]
[1725529600378,0.423123,2399.0,2398.9,0.41687]
[1725529600379,0.006253,2399.0,2398.9,0.41687]
[1725529600775,0.423113,2399.0,2398.8,0.41688]
[1725529600980,0.423113,2399.0,2398.7,0.4169]
[1725529600981,0.41688,2398.9,2398.7,0.4169]
[1725529601384,0.5453,2398.8,2398.7,0.4169]
[1725529603676,0.5453,2398.8,2398.4,5.2851]
[1725529603677,0.5453,2398.8,2398.4,4.2427]
[1725529603883,0.41692,2398.7,2398.5,0.41694]
[1725529604885,0.5453,2398.8,2398.4,3.7312]
[1725529605086,0.41688,2398.9,2398.8,0.41689]
[1725529605288,0.006253,2399.0,2398.8,0.41689]
[1725529605289,0.423113,2399.0,2398.8,0.41689]
[1725529605583,0.423113,2399.0,2398.9,0.41687]
[1725529605790,0.423113,2399.0,2398.8,0.41688]
[1725529606386,0.006253,2399.0,2398.7,0.4169]
[1725529606589,0.41689,2398.8,2398.6,0.41691]
[1725529607385,0.41688,2398.9,2398.4,7.6536]
[1725529607692,0.423123,2399.0,2398.8,0.41688]
[1725529608686,0.423123,2399.0,2398.5,1.04237]
[1725529608687,0.006253,2399.0,2398.9,0.41687]
[1725529610191,0.423113,2399.0,2398.9,0.41687]
[1725529610584,0.006253,2399.0,2398.7,0.96679]
[1725529610785,0.41691,2398.7,2398.6,0.41691]
[1725529611184,0.4169,2398.8,2398.6,0.41691]
[1725529611380,0.41691,2398.7,2398.6,0.41691]
[1725529613995,0.4169,2398.8,2398.6,0.41691]
[1725529614387,5.1710286,2398.9,2398.4,8.7115]
[1725529614592,5.1710286,2398.9,2398.5,0.56145785]
[1725529615092,5.1710286,2398.9,2398.8,0.41689]
[1725529617090,4.7541486,2398.9,2398.8,0.41689]
[1725529617491,5.1710186,2398.9,2398.8,0.41689]
[1725529618197,0.4169,2398.8,2398.7,0.4169]
[1725529618695,5.1710386,2398.9,2398.8,0.41689]
[1725529620894,5.1710386,2398.9,2398.7,0.4169]
[1725529621088,0.41689,2398.8,2398.7,0.4169]
[1725529621296,5.1710286,2398.9,2398.7,0.4169]
[1725529622593,4.7541486,2398.9,2398.8,0.41689]
[1725529623894,0.006253,2399.0,2398.9,0.41687]
[1725529624198,0.006253,2399.0,2398.9,2.49628765]
[1725529626101,0.006253,2399.0,2398.9,1.93487]
[1725529627802,19.34784104,2399.0,2398.9,0.56140233]
[1725529628105,0.41695,2398.5,2398.3,5.15918]
[1725529628299,0.41695,2398.5,2398.3,0.5452]
[1725529628492,3.29694,2398.6,2398.4,0.41696]
[1725529628696,0.41692,2398.7,2398.4,0.41696]
[1725529628993,0.41693,2398.6,2398.3,0.96217]
[1725529630206,0.41694,2398.5,2398.3,0.5452]
[1725529630498,0.92974,2398.5,2398.3,0.5452]
[1725529630901,0.41696,2398.4,2398.3,0.5452]
[1725529631098,0.417,2398.2,2398.1,0.5037]
[1725529632206,0.93339,2398.3,2398.1,0.5037]
[1725529632399,6.0878,2398.7,2398.1,0.5037]
[1725529632704,0.41693,2398.6,2398.2,0.5385]
[1725529632905,0.41693,2398.6,2398.3,0.41698]
[1725529633301,0.41693,2398.6,2398.2,0.5385]
[1725529633302,0.41693,2398.6,2398.4,0.41696]
[1725529634407,0.41693,2398.6,2398.3,0.41696]
[1725529634909,0.41694,2398.5,2398.3,0.41696]
[1725529635504,11.97494268,2398.7,2398.2,0.41699]
[1725529635708,0.41695,2398.5,2398.2,0.41699]
[1725529636099,0.41695,2398.5,2398.3,0.41698]
[1725529636409,0.41695,2398.5,2398.2,0.41698]
[1725529637303,3.29695,2398.5,2398.2,0.41698]
[1725529637704,3.29695,2398.5,2398.3,0.41698]
[1725529637912,0.41696,2398.4,2398.2,0.41698]
[1725529638913,3.29696,2398.5,2398.3,0.41698]
[1725529640414,5.2981,2398.7,2398.4,0.92526]
[1725529640415,0.41694,2398.6,2398.4,0.92526]
[1725529640713,0.5433,2398.7,2398.6,0.41693]
[1725529641412,2.886253,2399.0,2398.5,0.5426]
[1725529641711,0.006253,2399.0,2398.6,0.5491]
[1725529641910,0.006253,2399.0,2398.9,0.41687]
[1725529642516,0.423113,2399.0,2398.8,0.41688]
[1725529642706,0.006253,2399.0,2398.8,0.41688]
[1725529642898,0.006253,2399.0,2398.9,0.41687]
[1725529648213,0.006253,2399.0,2398.8,0.41688]
[1725529648409,3.303123,2399.0,2398.8,0.41688]
[1725529648808,3.303123,2399.0,2398.7,0.4169]
[1725529649007,2.886253,2399.0,2398.8,0.41689]
[1725529649302,2.886253,2399.0,2398.5,0.5426]
[1725529649506,1.47378,2398.9,2398.5,0.5426]
[1725529649707,1.47378,2398.9,2398.7,0.4169]
[1725529649906,0.95368,2398.9,2398.7,0.4169]